[Event "GCT Superbet Romania 2022"]
[Site "Bucharest"]
[Date "2022.05.05"]
[Round "1.1"]
[White "Caruana, Fabiano"]
[Black "Firouzja, Alireza"]
[Result "1/2-1/2"]
[ECO "D35"]
[WhiteElo "2786"]
[BlackElo "2804"]
[Annotator "TA"]
[PlyCount "57"]
[EventDate "2022.05.05"]
[EventType "tourn"]
[EventCountry "ROU"]
[SourceTitle "playchess.com"]
[Source "ChessBase"]
[SourceQuality "1"]
[TimeControl "40/5400+30:1800+30"]

{[%evp 15,57,10,20,6,22,16,20,0,12,20,19,8,26,9,30,21,27,24,34,15,27,0,0,0,0,0,-3,-29,0,0,27,23,26,25,43,31,35,38,20,0,41,0,35,0]} 1. c4 {[%emt 0:00:02]} e6 {[%emt 0:00:05]} 2. Nc3 {[%emt 0:00:06]} d5 {[%emt 0:00:07]} 3. d4 {[%emt 0:00:05]} Nf6 {[%emt 0:00:09]} 4. cxd5 {[%emt 0:00:08]} exd5 {[%emt 0:00:07]} 5. Bg5 {[%emt 0:00:11]} c6 {[%emt 0:00:18]} 6. e3 {[%emt 0:00:07]} h6 {[%emt 0:00:11]} 7. Bh4 {[%emt 0:00:12]} Be7 {[%emt 0:00:10]} 8. Bd3 {[%emt 0:00:16]} O-O {[%emt 0:00:12]} 9. Nge2 $1 {[%emt 0:00:16][%mdl 4] is more profitable than 9.Qc2 at the moment. D35: Queen's Gambit Declined: Exchange Variation.} Re8 {[%emt 0:00:57]} 10. O-O {[%emt 0:01:19]} Nbd7 {[%emt 0:00:55]} 11. a4 {[%emt 0:02:18][%cal Ba2a4,Ba4a5][%mdl 32] The position is equal.} Nh5 {[%emt 0:01:50]} 12. Bxe7 {[%emt 0:00:32]} Qxe7 {[%emt 0:00:05] [#]} 13. a5 $146 {[%emt 0:02:44]} (13. Nc1 Nhf6 14. Re1 b6 15. f3 c5 16. Bb5 Bb7 17. dxc5 bxc5 18. Nb3 Rac8 19. Na5) ({Predecessor:} 13. Nc1 Nhf6 14. Re1 b6 15. f3 c5 16. Bb5 Bb7 17. dxc5 bxc5 18. Nb3 Rac8 19. Na5 {0-1 (29) Balic,A (2088)-Krivokapic,M (2416) Cetinje 2009}) 13... a6 {[%emt 0:04:20]} 14. Ra3 {[%emt 0:25:01]} Nf8 {[%emt 0:11:06]} 15. Na4 {[%emt 0:04:01]} Rb8 {[%emt 0:02:25]} 16. Qd2 {[%emt 0:04:50]} Qg5 {[%emt 0:04:12]} 17. f3 {[%emt 0:07:54]} g6 {[%emt 0:01:04]} (17... Qxe3+ 18. Qxe3 Rxe3 19. Bh7+ Kxh7 20. Rxe3) ({Less strong is} 17... Qxe3+ 18. Qxe3 Rxe3 {[#]} 19. Bh7+ $1 {[%mdl 512]} Kxh7 20. Rxe3 $16) 18. Bb1 {[%emt 0:12:35]} Ng7 {[%emt 0:00:18]} 19. Nf4 {[%emt 0:09:18]} Bf5 {[%emt 0:03:50]} 20. Ba2 {[%emt 0:01:10]} h5 {[%emt 0:05:25]} 21. Qf2 {[%emt 0:09:38]} Nd7 {[%emt 0:06:02]} 22. h4 {[%emt 0:04:54]} Qf6 {[%emt 0:10:27]} 23. b4 {[%emt 0:01:03]} Qd6 {[%emt 0:01:33]} 24. Nc5 {[%emt 0:00:16]} Nf6 {[%emt 0:05:30]} 25. Qg3 {[%emt 0:02:57][%cal Of4h5] Strongly threatening Nxh5!} Qd8 {[%emt 0:04:06]} 26. Qg5 {[%emt 0:03:32]} Qd6 {[%emt 0:03:25]} 27. Qg3 {[%emt 0:00:05][%cal Of4h5]} Qd8 $1 {[%emt 0:00:06]} 28. Qg5 {[%emt 0:02:50]} Qd6 {[%emt 0:02:40]} 29. Qg3 {[%emt 0:02:33] Weighted Error Value: White=0.08 (flawless) /Black=0.07 (flawless)} 1/2-1/2

[Event "GCT Superbet Romania 2022"]
[Site "Bucharest"]
[Date "2022.05.05"]
[Round "1.2"]
[White "Aronian, Levon"]
[Black "Rapport, Richard"]
[Result "1/2-1/2"]
[ECO "D17"]
[WhiteElo "2765"]
[BlackElo "2776"]
[Annotator "TA RC"]
[PlyCount "77"]
[EventDate "2022.05.05"]
[EventType "tourn"]
[EventCountry "ROU"]
[SourceTitle "playchess.com"]
[Source "ChessBase"]
[SourceQuality "1"]
[TimeControl "40/5400+30:1800+30"]

{[%evp 15,77,25,22,15,21,11,20,22,21,0,0,0,12,0,13,0,-7,-26,-22,-18,-11,-36,-34,-37,0,0,0,-12,0,0,0,0,0,0,0,0,0,0,0,13,7,-13,0,0,65,0,0,0,0,0,0,0,0,0,0,0,0,0,0,0,0,0,0,0]} 1. d4 {[%emt 0:00:05]} d5 {[%emt 0:00:56]} 2. c4 {[%emt 0:00:10]} c6 {[%emt 0:00:18]} 3. Nf3 {[%emt 0:00:13]} Nf6 {[%emt 0:00:12]} 4. Nc3 {[%emt 0:00:09]} dxc4 {[%emt 0:00:21]} 5. a4 {[%emt 0:00:06]} Bf5 {[%emt 0:00:09]} 6. Ne5 {[%emt 0:00:11]} Nbd7 {[%emt 0:00:23]} 7. Nxc4 {[%emt 0:00:08]} Nb6 {[%emt 0:00:34]} 8. Ne5 {[%emt 0:00:34]} a5 {[%emt 0:00:15]} 9. f3 $1 {[%emt 0:00:25] 9.f3 is better than 9.g3. D17: Slav Defence: 5 a4 Bf5: Lines with 6 Nh4 and 6 Ne5.} Nfd7 {[%emt 0:00:39]} 10. Nxd7 $1 {[%emt 0:00:24]} Bxd7 {[%emt 0:00:33][%cal Bf5d7,Bd7e8,Be8g6][%mdl 32]} 11. e4 {[%emt 0:00:23]} e6 {[%emt 0:00:31] [#]} 12. Bf4 $146 {[%emt 0:05:20]} ({Predecessor:} 12. Be2 Bb4 13. O-O O-O 14. Kh1 h6 15. Be3 Rc8 16. Qb3 c5 17. Rfd1 Qe7 18. dxc5 Bxc5 {0-1 (46) Grischuk,A (2777)-Giri,A (2764) chess24.com INT 2020}) 12... Bb4 {[%emt 0:04:09]} 13. Be2 {[%emt 0:00:36]} O-O {[%emt 0:00:40]} 14. O-O {[%emt 0:00:09]} Rc8 {[%emt 0:07:26]} 15. Rf2 {[%emt 0:21:40]} Be8 {[%emt 0:16:51]} 16. Bf1 {[%emt 0:04:00]} f5 {[%emt 0:03:06]} 17. g3 {[%emt 0:06:10]} Bg6 {[%emt 0:05:15]} 18. h4 {[%emt 0:08:06]} (18. Na2 {seems wilder.} fxe4 19. Nxb4 axb4 20. fxe4 Bxe4 21. Qe1) 18... Kh8 {[%emt 0:05:28]} 19. Rc1 {[%emt 0:12:54]} Nd7 {[%emt 0:14:23]} 20. e5 {[%emt 0:09:49]} Nb6 {[%emt 0:01:08]} 21. Kg2 {[%emt 0:00:33]} h6 {[%emt 0:05:42]} 22. Qb3 {[%emt 0:15:17]} Bf7 {[%emt 0:08:20]} 23. Be3 {[%emt 0:00:48]} g5 {[%emt 0:03:31]} 24. hxg5 {[%emt 0:03:10]} hxg5 {[%emt 0:00:23]} 25. Kg1 {[%emt 0:00:46]} Kg7 {[%emt 0:01:26]} 26. Rh2 {[%emt 0:00:07]} Rh8 {[%emt 0:04:10]} 27. Rxh8 {[%emt 0:00:12]} Kxh8 {[%emt 0:00:06]} 28. g4 {[%emt 0:04:33] [#] aiming for gxf5.} f4 {[%emt 0:03:39]} (28... Kg7 {feels hotter.} 29. Kg2 Qe7 30. Bd3 Rh8) 29. Bf2 {[%emt 0:00:02]} Nd5 {[%emt 0:01:04]} ({Better is} 29... Kg7 $11) 30. Ne4 {[%emt 0:00:30]} (30. Bd3 $14) 30... Bg6 {[%emt 0:01:01] The position is equal.} 31. Bc4 {[%emt 0:00:36]} Rc7 {[%emt 0:02:42]} 32. Kg2 {[%emt 0:01:12]} Rh7 {[%emt 0:04:29] [#] Strongly threatening ...Bxe4.} 33. Rh1 {[%emt 0:00:40]} Rxh1 {[%emt 0:00:57]} 34. Kxh1 {[%emt 0:00:04]} Kg7 {[%emt 0:02:10]} 35. Kg2 {[%emt 0:00:07]} b6 {[%emt 0:00:36]} 36. Bd3 {[%emt 0:01:24]} Be7 {[%emt 0:00:45]} 37. Bc4 {[%emt 0:01:40]} Bb4 {[%emt 0:00:07]} 38. Bd3 {[%emt 0:00:24]} Be7 {[%emt 0:00:04]} 39. Bc4 {[%emt 0:00:05] Weighted Error Value: White=0.06 (flawless) /Black=0.07 (flawless)} 1/2-1/2

[Event "GCT Superbet Romania 2022"]
[Site "Bucharest"]
[Date "2022.05.05"]
[Round "1.3"]
[White "Nepomniachtchi, Ian"]
[Black "Deac, Bogdan-Daniel"]
[Result "1/2-1/2"]
[ECO "C43"]
[WhiteElo "2773"]
[BlackElo "2671"]
[Annotator "TA"]
[PlyCount "58"]
[EventDate "2022.05.05"]
[EventType "tourn"]
[EventCountry "ROU"]
[SourceTitle "playchess.com"]
[Source "ChessBase"]
[SourceQuality "1"]
[TimeControl "40/5400+30:1800+30"]

{[%evp 14,58,2,0,7,0,16,17,13,18,30,22,33,17,6,0,14,0,0,0,-3,-50,29,-40,0,0,0,-5,-6,-21,0,0,0,0,0,0,0,0,0,0,0,0,0,0,0,0,0]} 1. e4 {[%emt 0:00:07]} e5 {[%emt 0:00:19]} 2. Nf3 {[%emt 0:00:07]} Nf6 {[%emt 0:00:11]} 3. d4 {[%emt 0:00:22]} Nxe4 {[%emt 0:00:08]} 4. Bd3 {[%emt 0:00:07]} d5 {[%emt 0:00:05]} 5. Nxe5 {[%emt 0:00:18]} Nd7 {[%emt 0:00:14]} 6. Nc3 {[%emt 0:00:08]} Nxc3 {[%emt 0:05:20]} 7. bxc3 {[%emt 0:01:44]} Nxe5 {[%emt 0:00:19]} 8. dxe5 {[%emt 0:00:09]} Bc5 {[%emt 0:00:06] C43: Petroff Defence: 3 d4.} 9. Qh5 {[%emt 0:00:07]} g6 {[%emt 0:04:00]} 10. Qh6 {[%emt 0:00:17]} Bf8 {[%emt 0:01:37]} 11. Qe3 {[%emt 0:00:13] [#]} Qe7 $146 {[%emt 0:00:20]} (11... Be7 12. Rb1 b6 13. Qg3 h5 14. O-O Be6 15. Bb5+ Kf8 16. Bc6 h4 17. Qf3 Rb8) ({Predecessor:} 11... Be7 12. Rb1 b6 13. Qg3 h5 14. O-O Be6 15. Bb5+ Kf8 16. Bc6 h4 17. Qf3 Rb8 {½-½ (39) Steinkellner,P (2425)-Serradimigni,R (2473) ICCF email 2019}) 12. a4 {[%emt 0:09:57]} Qc5 {[%emt 0:31:31]} 13. Qd2 {[%emt 0:04:34]} Qa5 {[%emt 0:05:31]} 14. Rb1 {[%emt 0:05:28]} Be7 {[%emt 0:11:25]} 15. O-O {[%emt 0:02:54]} O-O $1 {[%emt 0:00:48]} 16. Qf4 {[%emt 0:09:50]} Qxc3 {[%emt 0:11:41]} 17. h4 {[%emt 0:01:40][%cal Oh4h5]} c5 {[%emt 0:04:32]} ({Black should play} 17... Qc6 $15) 18. h5 {[%emt 0:04:15]} (18. Rb5 a6 19. Bb2 Qxd3 20. cxd3 axb5 21. axb5) (18. Bd2 $11 Qa3 19. Ra1) 18... Qd4 {[%emt 0:05:03]} (18... c4 19. Bd2 Qa3) (18... c4 $5 {[%cal Rc4d3]} 19. Bd2 Qa3 $17) 19. Qxd4 {[%emt 0:01:51] The position is equal.} cxd4 {[%emt 0:00:20][%cal Bc5d4,Bd4d3,Bd3c2][%mdl 32]} 20. Bh6 {[%emt 0:00:22]} Re8 {[%emt 0:01:17]} 21. f4 {[%emt 0:04:00]} Rb8 {[%emt 0:01:36]} (21... b6) (21... b6 $5 {[%cal Rc8g4]}) 22. f5 {[%emt 0:02:42]} gxf5 {[%emt 0:05:56]} 23. Bxf5 {[%emt 0:03:47]} d3 {[%emt 0:05:28]} 24. Bxc8 {[%emt 0:19:11] [#] And now Bf5 would win.} Rbxc8 {[%emt 0:01:39]} 25. Rf4 {[%emt 0:00:54]} dxc2 {[%emt 0:01:01]} 26. Rg4+ {[%emt 0:00:09]} Kh8 $1 {[%emt 0:00:01]} 27. Bg7+ {[%emt 0:28:47]} Kg8 {[%emt 0:00:02]} 28. Bh6+ {[%emt 0:00:00]} Kh8 $1 {[%emt 0:00:06]} 29. Bg7+ {[%emt 0:00:00]} Kg8 {[%emt 0:00:07] An even fight not without its subleties.  Weighted Error Value: White=0.08 (flawless) /Black=0.13 (very precise)} 1/2-1/2

[Event "GCT Superbet Romania 2022"]
[Site "Bucharest"]
[Date "2022.05.05"]
[Round "1.4"]
[White "So, Wesley"]
[Black "Mamedyarov, Shakhriyar"]
[Result "1-0"]
[ECO "E48"]
[WhiteElo "2766"]
[BlackElo "2770"]
[Annotator "TA"]
[PlyCount "104"]
[EventDate "2022.05.05"]
[EventType "tourn"]
[EventCountry "ROU"]
[SourceTitle "playchess.com"]
[Source "ChessBase"]
[SourceQuality "1"]
[TimeControl "40/5400+30:1800+30"]

{[%evp 11,104,12,0,-8,-8,0,0,0,0,0,14,6,16,-4,31,27,39,49,36,35,40,0,0,0,0,0,0,10,42,18,25,24,25,25,38,26,21,21,50,34,70,70,70,70,68,60,75,70,70,63,53,53,56,70,70,65,63,60,60,63,58,62,77,78,78,78,114,0,78,78,78,78,78,78,78,78,78,78,78,78,78,67,70,63,63,57,56,56,132,130,144,142,190,198,29993]} 1. d4 {[%emt 0:00:12]} Nf6 {[%emt 0:00:07]} 2. c4 {[%emt 0:00:10]} e6 {[%emt 0:00:09]} 3. Nc3 {[%emt 0:00:51]} Bb4 {[%emt 0:00:12]} 4. e3 {[%emt 0:00:07]} O-O {[%emt 0:00:12]} 5. Bd3 {[%emt 0:00:06]} d5 {[%emt 0:00:08]} 6. cxd5 {[%emt 0:00:24]} exd5 {[%emt 0:00:28]} 7. a3 {[%emt 0:00:06] E48: Nimzo-Indian: Rubinstein: 5 Bd3 d5 including 6 Ne2, but excluding 6 a3.} Bd6 {[%emt 0:03:00]} 8. Qc2 {[%emt 0:00:13]} a6 {[%emt 0:01:06]} 9. Nge2 {[%emt 0:00:13] The position is equal.} Re8 {[%emt 0:02:11]} 10. O-O {[%emt 0:00:21]} b6 {[%emt 0:01:00][%cal Bb7b6,Bb6c5,Bc5c4][%mdl 32]} 11. b4 {[%emt 0:01:17]} Nbd7 {[%emt 0:09:23]} 12. Nf4 {[%emt 0:04:01] [#]} Bxf4 $146 {[%emt 0:09:51]} (12... Bb7 13. Rb1 Nf8 14. f3 Ng6 15. Nfe2 Qe7 16. Ng3 Qd7 17. Nf5 Bf8 18. Kh1 Ne7) ({Predecessor:} 12... Bb7 13. Rb1 Nf8 14. f3 Ng6 15. Nfe2 Qe7 16. Ng3 Qd7 17. Nf5 Bf8 18. Kh1 Ne7 {1-0 (40) Rapport,R (2763)-Vidit,S (2727) Belgrade 2022}) 13. exf4 {[%emt 0:00:14]} c5 {[%emt 0:00:02]} 14. dxc5 {[%emt 0:12:53]} bxc5 {[%emt 0:00:03]} 15. Rd1 {[%emt 0:00:29]} Bb7 {[%emt 0:10:55]} 16. Na4 {[%emt 0:10:27]} c4 {[%emt 0:10:44]} 17. Bf5 {[%emt 0:10:00]} a5 {[%emt 0:11:06]} 18. Be3 {[%emt 0:08:47]} axb4 {[%emt 0:03:38]} 19. axb4 {[%emt 0:00:10]} Qe7 {[%emt 0:02:12]} 20. Rab1 {[%emt 0:04:01]} g6 {[%emt 0:02:52]} 21. Bxd7 {[%emt 0:10:54]} Nxd7 {[%emt 0:00:48]} (21... Qxd7 22. Nb6 Qe6 23. Nxa8 Rxa8 24. Qb2) (21... Qxd7 $2 22. Nb6 Qe6 23. Nxa8 Rxa8 24. Bd4 $18) 22. Nc3 {[%emt 0:00:27][%cal Ba4c3,Bc3b5,Bb5d4][%mdl 32]} Nf6 {[%emt 0:00:01][%cal Bd7f6,Bf6h5,Bh5g7,Bg7f5][%mdl 32]} 23. Bd4 {[%emt 0:11:28]} Nh5 {[%emt 0:00:32]} 24. Qd2 {[%emt 0:00:58]} f6 {[%emt 0:09:14]} (24... Qh4 25. g3 Qg4 26. Rf1 Qf3) (24... Qh4 {with more complications.} 25. g3 Qg4 26. Rf1 Qf3) 25. h3 {[%emt 0:02:50]} Ng7 {[%emt 0:02:54]} 26. Bc5 {[%emt 0:01:31]} Qf7 {[%emt 0:00:46]} 27. Nb5 $1 {[%emt 0:00:24] Against Ra3} (27. Nxd5 Bxd5 28. Ra1 Rxa1 29. Rxa1 Bb7) ({Don't go for} 27. Nxd5 $2 Bxd5 28. Ra1 Rxa1 29. Rxa1 Qb7 $19) 27... Nf5 {[%emt 0:00:15]} 28. Nd4 {[%emt 0:01:05]} Qd7 {[%emt 0:02:26]} 29. Re1 {[%emt 0:00:42]} Kf7 {[%emt 0:01:27]} 30. Rxe8 {[%emt 0:05:47]} Rxe8 {[%emt 0:00:05]} 31. Ra1 {[%emt 0:00:10]} Ra8 {[%emt 0:04:00]} 32. Re1 {[%emt 0:02:42]} Re8 {[%emt 0:00:07]} 33. Rxe8 {[%emt 0:00:43]} Qxe8 {[%emt 0:00:06]} 34. Nxf5 {[%emt 0:00:05]} gxf5 $14 {[%emt 0:00:02][%mdl 4096] Endgame KQB-KQB} 35. Bd4 {[%emt 0:03:30]} Bc6 {[%emt 0:08:19]} 36. f3 {[%emt 0:02:53]} h5 {[%emt 0:01:23]} 37. Qf2 {[%emt 0:01:54]} Qf8 {[%emt 0:04:27]} 38. Qb2 {[%emt 0:05:00]} Qb8 {[%emt 0:00:07]} 39. Qd2 {[%emt 0:01:10]} (39. Bxf6 Qxf4 40. Bh8) (39. Bxf6 $16 {aiming for Bh8.} Qxf4 40. Bh8) 39... Kg6 {[%emt 0:01:40]} (39... Qe8) (39... Qe8 $1 $11) 40. Qe3 $16 {[%emt 0:00:00] [#] Hoping for Qe6.} Kf7 {[%emt 0:00:00] Against Qe6+} 41. Bc3 {[%emt 0:01:35]} Bd7 {[%emt 0:06:44]} 42. Kh2 {[%emt 0:01:45]} Qd6 {[%emt 0:00:14]} 43. Kg3 {[%emt 0:03:33]} Kg6 {[%emt 0:00:07]} 44. Kh4 {[%emt 0:00:59]} Bb5 {[%emt 0:05:07]} 45. Qd4 {[%emt 0:04:35]} Bd7 {[%emt 0:00:21]} 46. Qd2 {[%emt 0:03:52]} Bc6 {[%emt 0:00:59]} 47. Bd4 {[%emt 0:00:16]} Bd7 {[%emt 0:00:07]} 48. g3 {[%emt 0:04:09]} Be8 {[%emt 0:03:32]} 49. Qb2 {[%emt 0:01:38]} Qc6 {[%emt 0:01:25]} (49... Bb5) ({Black should try} 49... Bb5 $14) 50. Qa3 {[%emt 0:00:20][%cal Ob4b5] Strongly threatening b5! White is more active.} Qa4 {[%emt 0:00:58]} 51. Qe3 {[%emt 0:00:28] White wants to mate with Qe6.} Qd7 {[%emt 0:00:15] [#] Prevents Qe6.} (51... Kf7 $16 {is a better defense.}) 52. b5 $1 $18 {[%emt 0:01:26] b6 is the strong threat.} Qxb5 $2 {[%emt 0:18:43] Weighted Error Value: White=0.05 (flawless) /Black=0.12 (very precise)} (52... Kf7 53. b6 (53. Kxh5 Kf8+) 53... Qd8) (52... Qf7 $18) 1-0

[Event "GCT Superbet Romania 2022"]
[Site "Bucharest"]
[Date "2022.05.05"]
[Round "1.5"]
[White "Vachier-Lagrave, Maxime"]
[Black "Dominguez Perez, Leinier"]
[Result "1/2-1/2"]
[ECO "C42"]
[WhiteElo "2750"]
[BlackElo "2753"]
[Annotator "TA"]
[PlyCount "71"]
[EventDate "2022.05.05"]
[EventType "tourn"]
[EventCountry "ROU"]
[SourceTitle "playchess.com"]
[Source "ChessBase"]
[SourceQuality "1"]
[TimeControl "40/5400+30:1800+30"]

{[%evp 9,71,11,18,8,18,11,14,5,10,11,10,4,12,0,19,11,25,25,23,18,46,0,12,19,43,43,42,40,42,29,31,28,30,21,47,28,62,0,39,14,14,24,21,25,23,21,20,13,19,19,19,18,34,16,25,29,32,13,39,0,24,0,32,0]} 1. e4 {[%emt 0:00:03]} e5 {[%emt 0:00:30]} 2. Nf3 {[%emt 0:00:03]} Nf6 {[%emt 0:00:07]} 3. Nxe5 {[%emt 0:00:03][%cal Bf3e5,Be5d3,Bd3f4][%mdl 32]} d6 {[%emt 0:00:09]} 4. Nd3 {[%emt 0:00:04]} Nxe4 {[%emt 0:00:09]} 5. Qe2 {[%emt 0:00:03]} Qe7 {[%emt 0:00:10]} 6. Nf4 {[%emt 0:00:09] [#] Threatens to win with Nd5. C42: Petroff Defence: 3 Nxe5 and unusual White 3rd moves.} Nf6 {[%emt 0:00:24] Against Nd5} 7. d4 {[%emt 0:03:34]} Qxe2+ {[%emt 0:02:13]} 8. Bxe2 {[%emt 0:00:20] The position is equal.} Nc6 {[%emt 0:00:07][%cal Bb8c6,Bc6e7,Be7g6,Bg6h4][%mdl 32]} 9. c3 {[%emt 0:00:48]} d5 {[%emt 0:00:13] [#]} 10. Bf3 $146 {[%emt 0:09:40]} (10. f3 Nd8 11. g4 Ne6 12. h4 Bd6 13. Nxe6 Bxe6 14. h5 h6 15. Na3 a6 16. Nc2) ({Predecessor:} 10. f3 Nd8 11. g4 Ne6 12. h4 Bd6 13. Nxe6 Bxe6 14. h5 h6 15. Na3 a6 16. Nc2 {½-½ (52) Deac,B (2621)-Li,D (2523) Changsha 2019}) 10... Ne7 {[%emt 0:19:47]} 11. O-O {[%emt 0:01:20]} Bf5 {[%emt 0:07:07]} 12. Re1 {[%emt 0:08:23] White wants to play Nxd5.} O-O-O {[%emt 0:02:06]} 13. Nd2 {[%emt 0:05:02]} Ng6 {[%emt 0:11:04]} 14. Nf1 {[%emt 0:01:04]} Bd6 {[%emt 0:25:44]} 15. Ng3 {[%emt 0:21:25]} (15. Nxd5 $14 {deserves consideration.} Nh4 16. Ng3) 15... Rhe8 {[%emt 0:12:43] [#]} 16. Be3 $1 {[%emt 0:10:43][%cal Bc1e3,Be3d2,Bd2e1][%mdl 32]} Nh4 {[%emt 0:00:24]} (16... Bg4 17. Bxg4+) 17. Nxf5 {[%emt 0:06:05]} Nxf5 {[%emt 0:00:02]} 18. Bd2 {[%emt 0:01:38]} c6 {[%emt 0:09:26]} 19. Rxe8 {[%emt 0:06:43]} Rxe8 {[%emt 0:00:07]} 20. Nd3 {[%emt 0:00:07]} Nh4 {[%emt 0:02:46]} 21. Bd1 {[%emt 0:00:20]} Ne4 {[%emt 0:00:10] Prevents Bg5.} 22. Be1 {[%emt 0:02:44] f3 is the strong threat.} Nf5 {[%emt 0:01:45]} 23. a4 {[%emt 0:05:09]} (23. Bg4 g6 24. f3) (23. Bg4 $14 g6 24. f3) 23... g6 {[%emt 0:01:10]} 24. g4 {[%emt 0:03:57]} Ng7 {[%emt 0:00:38]} 25. f3 {[%emt 0:00:13]} Nf6 {[%emt 0:00:30]} (25... Ng5) 26. Bg3 {[%emt 0:01:07]} Bxg3 {[%emt 0:00:54]} 27. hxg3 {[%emt 0:00:16]} Nd7 {[%emt 0:00:44]} 28. Kf2 {[%emt 0:01:00]} h5 {[%emt 0:00:55]} 29. gxh5 {[%emt 0:00:22]} Nxh5 {[%emt 0:00:02]} 30. Bc2 {[%emt 0:02:57]} Ng7 {[%emt 0:02:34]} 31. Rh1 {[%emt 0:02:02]} Nf5 {[%emt 0:00:02]} 32. g4 {[%emt 0:03:00]} Nd6 {[%emt 0:00:09]} 33. Rh7 {[%emt 0:01:34]} Nf6 {[%emt 0:00:21]} 34. Rh1 {[%emt 0:00:10]} Nd7 {[%emt 0:00:04]} 35. Rh7 {[%emt 0:00:41]} Nf6 {[%emt 0:00:02]} 36. Rh1 {[%emt 0:00:07] Weighted Error Value: White=0.11 (very precise) /Black=0.07 (flawless)} 1/2-1/2

[Event "GCT Superbet Romania 2022"]
[Site "Bucharest"]
[Date "2022.05.06"]
[Round "2.1"]
[White "So, Wesley"]
[Black "Vachier-Lagrave, Maxime"]
[Result "1/2-1/2"]
[ECO "D27"]
[WhiteElo "2766"]
[BlackElo "2750"]
[Annotator "TA"]
[PlyCount "47"]
[EventDate "2022.05.05"]
[EventType "tourn"]
[EventCountry "ROU"]
[SourceTitle "playchess.com"]
[Source "ChessBase"]
[SourceQuality "1"]
[TimeControl "40/5400+30:1800+30"]

{[%evp 16,47,23,39,41,39,30,45,25,41,56,13,28,8,33,0,0,0,0,0,0,9,9,16,8,11,20,0,59,0,16,0,47,0]} 1. Nf3 {[%emt 0:00:04]} d5 {[%emt 0:00:06]} 2. d4 {[%emt 0:05:01]} Nf6 {[%emt 0:01:09]} 3. c4 {[%emt 0:00:05]} dxc4 {[%emt 0:00:05]} 4. e3 {[%emt 0:00:06]} e6 {[%emt 0:00:05]} 5. Bxc4 {[%emt 0:00:06]} a6 {[%emt 0:00:06]} 6. O-O {[%emt 0:03:26]} c5 {[%emt 0:00:21]} 7. b3 {[%emt 0:04:04]} cxd4 {[%emt 0:00:33]} 8. Nxd4 {[%emt 0:00:05]} Be7 {[%emt 0:00:07]} 9. Bb2 {[%emt 0:00:06]} O-O {[%emt 0:00:07] D27: Queen's Gambit Accepted: Classical main line: 7 e4!? and 7 a4.} 10. Be2 {[%emt 0:04:53]} b5 {[%emt 0:00:59]} 11. a4 {[%emt 0:05:43]} bxa4 {[%emt 0:00:26]} 12. Rxa4 {[%emt 0:02:48]} Bb7 {[%emt 0:00:32]} 13. Bf3 {[%emt 0:00:12] [#]} Qd7 $146 {[%emt 0:13:30]} (13... Bxf3 14. Qxf3 Qd5 15. Nd2 Nbd7 16. Rfa1 Qxf3 17. gxf3 Nc5 18. Nc6 Rfe8 19. Nxe7+ Rxe7) ({Predecessor:} 13... Bxf3 14. Qxf3 Qd5 15. Nd2 Nbd7 16. Rfa1 Qxf3 17. gxf3 Nc5 18. Nc6 Rfe8 19. Nxe7+ Rxe7 {1-0 (53) Pacan Milej,K (2401)-Malek,J (2149) Pokrzywna 2021}) 14. Nd2 {[%emt 0:21:03]} Nc6 {[%emt 0:02:14]} 15. Nc4 {[%emt 0:07:56] [#] Hoping for Nb6.} Nxd4 {[%emt 0:01:51]} 16. Bxd4 {[%emt 0:06:31]} Bxf3 {[%emt 0:03:43]} 17. Qxf3 {[%emt 0:00:05] Strongly threatening Nb6.} Qb5 {[%emt 0:00:09]} 18. Rb1 {[%emt 0:04:41]} Rab8 {[%emt 0:06:28][%cal Ob5a4] [#] White must now prevent ...Qxa4!} 19. Raa1 {[%emt 0:01:52]} Rfd8 {[%emt 0:11:13]} 20. h3 {[%emt 0:01:13]} Rd5 {[%emt 0:01:15]} 21. Qg3 {[%emt 0:04:41]} Rg5 {[%emt 0:11:02]} (21... Nh5 22. Qf3 Nf6) (21... Nh5 $11 22. Qf3 Nf6) 22. Qf3 {[%emt 0:01:01] And now Ra5 would win.} (22. Qf4 Nd5 23. Qf3) 22... Rd5 {[%emt 0:00:46]} 23. Qg3 {[%emt 0:00:05]} Rg5 {[%emt 0:00:04]} 24. Qf3 {[%emt 0:02:18] Weighted Error Value: White=0.14 (very precise) /Black=0.08 (flawless)} (24. Qf4 $14 Nd5 25. Qf3) 1/2-1/2